fUSD/lending_fUSD_20240523
["ID","MTS","AMOUNT","RATE_DAILY","PERIOD"]
[327795350,1716488330505,500.0,0.00024699,2]
[327795351,1716488330567,321.90004836,0.00024673,2]
[327795352,1716488330764,500.0,0.00024973,2]
[327795353,1716488330852,500.0,0.00024699,2]
[327795354,1716488331166,500.0,0.00024699,2]
[327795355,1716488331447,500.0,0.00024699,2]
[327795356,1716488331575,500.0,0.00024699,2]
[327795357,1716488331758,500.0,0.00024699,2]
[327795358,1716488331928,500.0,0.00024674,2]
[327795359,1716488332048,589.27,0.00024699,2]
[327795360,1716488332114,381.23286506,0.00024674,2]
[327795361,1716488332569,423.63696114,0.00022521,2]
[327795362,1716488332672,292.43579581,0.00024674,2]
[327795363,1716488332732,500.0,0.00024674,2]
[327795364,1716488332982,626.64,0.00024948,2]
[327795365,1716488333037,500.0,0.00024699,2]
[327795366,1716488333829,500.0,0.00024699,2]
[327795367,1716488333895,28421.04,0.00024155,2]
[327795368,1716488334076,155.0,0.00024674,2]
[327795369,1716488334136,500.0,0.00024973,2]
[327795370,1716488334373,500.0,0.00024674,2]
[327795371,1716488334675,221.5192666,0.00024948,2]
[327795372,1716488336055,500.0,0.00024674,2]
[327795373,1716488336152,500.0,0.00024948,2]
[327795374,1716488337052,19723.4320937,0.00024674,2]
[327795375,1716488337308,406.28241486,0.00024699,2]
[327795376,1716488337973,155.0,0.00024674,2]
[327795377,1716488338907,547787.04045493,0.00024674,2]
[327795378,1716488339056,314.06550453,0.00023772,7]
[327795379,1716488339155,500.0,0.00024674,2]
[327795380,1716488339212,452.84235246,0.0002227,2]
[327795381,1716488339428,437.98,0.00024948,2]
[327795382,1716488341412,12552.9,0.00024115,2]
[327795383,1716488341741,549.40255929,0.00024674,2]
[327795384,1716488342126,364.23011814,0.00024674,2]
[327795385,1716488342206,155.0,0.00025,2]
[327795386,1716488342800,231.99334737,0.00024771,2]
[327795387,1716488342861,500.0,0.00024699,2]
[327795388,1716488343335,500.0,0.00024699,2]
[327795389,1716488343397,7521.14051331,0.00024674,2]
[327795390,1716488343472,587.73,0.00024973,2]
[327795391,1716488344079,289.30751023,0.00024674,2]
[327795392,1716488344272,1900.0,0.00020136,2]
[327795393,1716488345203,751.44548382,0.00022519,2]
[327795394,1716488345297,2605.72998571,0.00024181,2]
[327795395,1716488345608,800.0,0.00024986,2]
[327795396,1716488346239,1900.0,0.00020684,2]
[327795397,1716488346369,1742.016613,0.00024875,2]
[327795398,1716488347451,20226.86051452,0.00024674,2]
[327795399,1716488347757,500.0,0.00024699,2]
[327795400,1716488347955,1900.0,0.00021232,2]
[327795401,1716488348542,926.99561138,0.00025,2]
[327795402,1716488348652,381.45488229,0.00024674,2]
[327795403,1716488349544,1297.36232668,0.00023772,2]
[327795404,1716488349703,1900.0,0.0002178,2]
[327795405,1716488350477,258.91455872,0.00024699,2]
[327795406,1716488351176,500.0,0.00024674,2]
[327795407,1716488351373,1900.0,0.00022876,2]
[327795408,1716488351521,500.0,0.00024674,2]
[327795409,1716488352216,500.0,0.00024699,2]
[327795410,1716488352503,158.19,0.00024973,2]
[327795411,1716488353059,1900.0,0.00023972,2]
[327795412,1716488353668,314.8814837,0.00024674,2]
[327795413,1716488355818,155.0,0.00024674,2]
[327795414,1716488355952,500.0,0.00024674,2]
[327795415,1716488356014,2330.05360267,0.00024999,2]
[327795416,1716488356075,500.0,0.00024699,2]
[327795417,1716488356132,155.0,0.00024674,2]
[327795418,1716488356403,590.14,0.00024095,2]
[327795419,1716488356478,500.0,0.00024674,2]
[327795420,1716488356574,390.21096535,0.00022519,2]
[327795421,1716488356650,500.0,0.00024973,2]
[327795422,1716488356724,500.0,0.00024674,2]
[327795423,1716488356790,299.13,0.00024948,2]
[327795424,1716488356919,547787.04045493,0.00024674,2]
[327795425,1716488357035,314.06550453,0.0002377,7]
[327795426,1716488357437,500.0,0.00020136,2]
[327795427,1716488357799,155.0,0.00024999,2]
[327795428,1716488357941,201.50937588,0.00023651,2]
[327795429,1716488358511,1180.1693692,0.00024999,2]
[327795430,1716488358669,500.0,0.00024674,2]
[327795431,1716488358767,3000.0,0.00025,2]
[327795432,1716488358922,500.0,0.00024699,2]
[327795433,1716488359303,1000.0,0.00024999,2]
[327795434,1716488359380,7521.14051331,0.00024674,2]
[327795435,1716488359434,263.21358901,0.00024999,2]
[327795436,1716488359558,500.0,0.00024674,2]
[327795437,1716488359929,500.0,0.00021232,2]
[327795438,1716488360207,155.0,0.00025,2]
[327795439,1716488360521,165.75,0.00024095,2]
[327795440,1716488360661,155.0,0.00024999,2]
[327795441,1716488361185,512.25095071,0.00022519,2]
[327795442,1716488361259,649.77,0.00024674,2]
[327795443,1716488361324,500.0,0.00024699,2]
[327795444,1716488361395,155.0,0.00025,2]
[327795445,1716488361616,500.0,0.00024973,2]
[327795446,1716488361860,549.40255929,0.00024674,2]
[327795447,1716488362108,500.0,0.00022328,2]
[327795448,1716488363581,500.0,0.00024699,2]
[327795449,1716488363764,500.0,0.00023424,2]
[327795450,1716488363830,500.0,0.00024699,2]
[327795451,1716488363908,500.0,0.00024674,2]
[327795452,1716488364054,500.0,0.00024973,2]
[327795453,1716488364133,166.17506559,0.00024674,2]
[327795454,1716488364220,500.0,0.00024973,2]
[327795455,1716488364688,500.0,0.00024699,2]
[327795456,1716488364937,500.0,0.00024973,2]
[327795457,1716488364997,472.45726553,0.00024673,2]
[327795458,1716488365411,500.0,0.0002452,2]
[327795459,1716488365487,20226.86051452,0.00024674,2]
[327795460,1716488366620,926.99561138,0.00025,2]
[327795461,1716488366882,155.0,0.00024999,2]
[327795462,1716488367809,400.0,0.00024095,2]
[327795463,1716488367880,2001.77490136,0.00024999,2]
[327795464,1716488368204,400.0,0.00027106,120]
[327795465,1716488368569,400.0,0.00030118,120]
[327795466,1716488368875,833.09,0.00024699,2]
[327795467,1716488369143,833.09,0.00024973,2]
[327795468,1716488369328,2391.29343687,0.00024181,2]
[327795469,1716488369452,500.0,0.00024699,2]
[327795470,1716488370081,210.42228446,0.00024999,2]
[327795471,1716488370503,500.0,0.00024674,2]
[327795472,1716488370962,250.0,0.00024095,2]
[327795473,1716488371078,4431.54285729,0.00024999,2]
[327795474,1716488371627,500.0,0.00024699,2]
[327795475,1716488371826,155.0,0.00024674,2]
[327795476,1716488372269,180.25026804,0.00024674,2]
[327795477,1716488373033,458.94,0.00024973,2]
[327795478,1716488373377,718.77,0.00024095,2]
[327795479,1716488373512,780.87,0.00024699,2]
[327795480,1716488373841,500.0,0.00024674,2]
[327795481,1716488374398,780.87,0.00024973,2]
[327795482,1716488374925,274727.10546122,0.00024674,2]
[327795483,1716488375251,155.0,0.00017259,2]
[327795484,1716488378621,204.9936907,0.00017259,2]
[327795485,1716488382921,365.52068094,0.00017259,2]
[327795486,1716488385172,240.87572633,0.00017259,2]
[327795487,1716488385719,155.0,0.00017259,2]
[327795488,1716488389135,155.0,0.00017259,2]
[327795489,1716488392530,526.23415314,0.00017259,2]
[327795490,1716488402024,1273.43268331,0.00017259,2]
[327795491,1716488443942,7521.14051331,0.00017259,2]
[327795492,1716488444600,155.0,0.00017259,2]
[327795493,1716488446743,180.25026804,0.00017259,2]
[327795494,1716488447431,547787.04045493,0.00017259,2]
[327795495,1716488449969,20226.86051452,0.00017259,2]
[327795496,1716488461924,7521.14051331,0.00017259,2]
[327795497,1716488462531,150.0,0.00019725,2]
[327795498,1716488462613,150.0,0.00019725,2]
[327795499,1716488463961,20226.86051452,0.00017259,2]
[327795500,1716488465429,547787.04045493,0.00017259,2]
[327795501,1716488466584,234.23414049,0.00017259,2]
[327795502,1716488466737,180.25026804,0.00017259,2]
[327795503,1716488481934,6329.84284186,0.00017259,2]
[327795504,1716488481994,20226.86051452,0.00017259,2]
[327795505,1716488483546,3010.28376271,0.00019725,2]
[327795506,1716488484742,180.25026804,0.00017259,2]
[327795507,1716488485436,547787.04045493,0.00017259,2]
[327795508,1716488492966,3091.82152495,0.00017807,2]
[327795509,1716488494118,406.25226612,0.00017807,2]
[327795510,1716488495230,939.86578351,0.00017807,2]
[327795511,1716488495869,2223.47774106,0.00017807,2]
[327795512,1716488496426,344.66778136,0.00017807,2]
[327795513,1716488497964,20226.86051452,0.00017259,2]
[327795514,1716488499078,157.83143433,0.00017807,2]
[327795515,1716488499873,10943.88615633,0.00019725,2]
[327795516,1716488500761,180.25026804,0.00017259,2]
[327795517,1716488501327,5566.93826705,0.00019725,2]
[327795518,1716488501939,155.0,0.00019725,2]
[327795519,1716488503663,206393.18382999,0.00017259,2]
[327795520,1716488505666,237.45326717,0.00017807,2]
[327795521,1716488507456,2187.63741095,0.00019725,2]
[327795522,1716488507752,162.1290141,0.00017807,2]
[327795523,1716488508304,378.30951817,0.00017807,2]
[327795524,1716488508686,534.8660217,0.00019725,2]
[327795525,1716488511724,1206.37071006,0.00019451,2]
[327795526,1716488512291,834.86816958,0.00019725,2]
[327795527,1716488518753,180.25026804,0.00017259,2]
[327795528,1716488519963,20226.86051452,0.00017259,2]
[327795529,1716488520847,713.51808082,0.00017807,2]
[327795530,1716488521761,201.05005513,0.00017807,2]
[327795531,1716488522338,234.36766967,0.00017807,2]
[327795532,1716488522392,35385.92703072,0.00019725,2]
[327795533,1716488522623,167.98358105,0.00017259,2]
[327795534,1716488522823,195.13104654,0.00017259,2]
[327795535,1716488524706,1245.82158304,0.00019451,2]
[327795536,1716488528658,208.77597556,0.00019451,2]
[327795537,1716488536753,180.25026804,0.00017259,2]
[327795538,1716488541510,2330.05360267,0.00019451,2]
[327795539,1716488543958,9049.92211091,0.00019451,2]
[327795540,1716488546567,1273.43268331,0.00019725,2]
[327795541,1716488550196,155.0,0.00019451,2]
[327795542,1716488550413,155.0,0.00019725,2]
[327795543,1716488555304,155.0,0.00019451,2]
[327795544,1716488555406,2001.77490136,0.00019451,2]
[327795545,1716488556756,215.81760059,0.00019451,2]
[327795546,1716488557753,804.06709515,0.00019451,2]
[327795547,1716488558595,4431.54285729,0.00019451,2]
[327795548,1716488562973,263.21358901,0.00019451,2]
[327795549,1716488569611,43327.92188896,0.00019725,2]
[327795550,1716488569876,1180.1693692,0.00019451,2]
[327795551,1716488571221,155.0,0.00019451,2]
[327795552,1716488572813,1000.0,0.00019451,2]
[327795553,1716488573676,210.42228446,0.00019451,2]
[327795554,1716488575760,4279.6454942,0.00019451,2]
[327795555,1716488581778,2919.65023509,0.00019451,2]
[327795556,1716488585222,364.00332703,0.00019523,2]
[327795557,1716488612327,3485.73225,0.00019451,2]
[327795558,1716488626938,155.0,0.00019725,2]
[327795559,1716488629972,970.39531171,0.00019451,30]
[327795560,1716488634262,939.86578351,0.00019451,2]
[327795561,1716488635832,155.0,0.00019725,2]
[327795562,1716488637472,263.21358901,0.00019725,2]
[327795563,1716488637730,155.0,0.00019725,2]
[327795564,1716488638372,5566.93826705,0.00019451,2]
[327795565,1716488638610,1180.1693692,0.00019725,2]
[327795584,1716488641364,1000.0,0.00019725,2]
[327795585,1716488641860,150.0,0.00019725,2]
[327795586,1716488641926,178.57,0.00016498,2]
[327795587,1716488642466,2187.63741095,0.00019451,2]
[327795588,1716488642771,162.1290141,0.00019451,2]
[327795589,1716488644829,156.20876749,0.00017259,2]
[327795590,1716488644899,10943.88615633,0.00019451,2]
[327795843,1716488654825,201.05005513,0.00019451,2]
[327795844,1716488656115,210.42228446,0.00019725,2]
[327795845,1716488657350,234.36766967,0.00019451,2]
[327795854,1716488676536,2330.05360267,0.00019451,2]
[327795855,1716488677087,3010.28376271,0.00019451,2]
[327795856,1716488687984,344.66778136,0.00019451,2]
[327795857,1716488690435,2001.77490136,0.00019451,2]
[327795859,1716488695456,155.0,0.00019451,2]
[327795860,1716488712984,2187.63741095,0.00019451,2]
[327795861,1716488715245,10943.88615633,0.00019451,2]
[327795862,1716488715320,162.1290141,0.00019451,2]
[327795863,1716488716327,155.0,0.00019451,2]
[327795864,1716488717124,1180.1693692,0.00019451,2]
[327795865,1716488721155,156.20876749,0.0001945,2]
[327795866,1716488722256,155.0,0.0001945,2]
[327795867,1716488730838,19504.25693756,0.00017259,2]
[327795868,1716488730925,1396.18,0.00018422,2]
[327795869,1716488736643,210.42228446,0.00019451,2]
[327795870,1716488755556,892.53176089,0.00017259,2]
[327795871,1716488755618,3010.28376271,0.00019451,2]
[327795872,1716488755766,1245.82158304,0.00019451,2]
[327795873,1716488760059,1790.57682134,0.00017259,2]
[327795874,1716488771954,155.0,0.00019451,2]
[327795875,1716488782834,155.0,0.00019451,2]
[327795876,1716488783955,35385.92703072,0.00019451,2]
[327795877,1716488787223,187.05,0.00015745,2]
[327795878,1716488789488,2187.63741095,0.00019451,2]
[327795879,1716488789784,1180.1693692,0.00019451,2]
[327795880,1716488795146,338.57,0.00019695,2]
[327795881,1716488796011,187.52,0.00019695,2]
[327795882,1716488822730,150.0,0.00019725,2]
[327795883,1716488829193,588.7396046,0.00017259,2]
[327795954,1716488840725,250.0,0.00019675,2]
[327795989,1716488841429,1852.42,0.00019675,2]
[327796196,1716488850282,162.1290141,0.00019451,2]
[327796197,1716488867642,210.42228446,0.00019451,2]
[327796198,1716488867807,527.88,0.00019745,2]
[327796199,1716488884600,3010.28376271,0.00019451,2]
[327796200,1716488886791,1245.82158304,0.00019451,2]
[327796201,1716488892910,250.0,0.00019803,2]
[327796202,1716488897669,2895.4,0.00019803,2]
[327796203,1716488908426,10000.0,0.00019898,2]
[327796204,1716488911205,8987.16,0.00019887,2]
[327796205,1716488919283,150.0,0.0001989,2]
[327796206,1716488920116,1139.65,0.0001989,2]
[327796207,1716488923579,1180.1693692,0.00019451,2]
[327796208,1716488926804,162.1290141,0.00019451,2]
[327796209,1716488934795,247.17,0.00019901,2]
[327796210,1716488935758,247.17,0.00024876,120]
[327796211,1716488935952,247.17,0.00027364,120]
[327796212,1716488936322,247.17,0.00029851,120]
[327796213,1716488944426,163.46,0.00019901,3]
[327796214,1716488950192,210.42228446,0.00019725,2]
[327796216,1716488952617,1270.80957045,0.00019957,2]
[327796217,1716488955151,485.49,0.00019898,2]
[327796218,1716488961422,1245.82158304,0.00019725,2]
[327796220,1716488993298,1180.1693692,0.00019451,2]
[327796221,1716488999634,177.68,0.00019909,2]
[327796222,1716489002535,150.0,0.00019725,2]
[327796223,1716489002598,150.0,0.00019725,2]
[327796224,1716489005014,150.0,0.00019725,2]
[327796225,1716489005201,150.0,0.00019725,2]
[327796226,1716489005638,162.1290141,0.00019451,2]
[327796227,1716489005707,150.0,0.00019725,2]
[327796228,1716489005799,150.0,0.00019725,2]
[327796229,1716489005883,150.0,0.00019725,2]
[327796230,1716489005967,150.0,0.00019725,2]
[327796231,1716489006135,150.0,0.00019725,2]
[327796232,1716489006312,150.0,0.00019725,2]
[327796233,1716489006491,150.0,0.00019725,2]
[327796234,1716489006664,151.97218798,0.00019725,2]
[327796235,1716489017579,35615.0,0.00019349,2]
[327796236,1716489021106,151.66,0.00019338,2]
[327796237,1716489031137,23900.0,0.00019338,2]
[327796252,1716489034773,-648.0,0.00020029,2]
[327796253,1716489034782,-2719.32027422,0.00020057,2]
[327796254,1716489034795,-673.68468,0.00020057,2]
[327796255,1716489034807,-1680.71504578,0.00020057,2]
[327796256,1716489034816,-932.89401002,0.00020113,3]
[327796257,1716489034828,-1567.10598998,0.00020113,3]
[327796258,1716489034838,-803.0,0.00020127,2]
[327796259,1716489034847,-1335.21,0.00020131,2]
[327796260,1716489034857,-5421.19709401,0.00020159,2]
[327796261,1716489034869,-6886.35290599,0.00020159,2]
[327796262,1716489034878,-6830.48,0.00020159,2]
[327796263,1716489034888,-157.58635489,0.00020213,2]
[327796264,1716489034897,-7973.91,0.00020213,2]
[327796265,1716489034907,-10419.56,0.00020242,2]
[327796266,1716489034917,-215.26,0.00020258,2]
[327796267,1716489034926,-157.58635487,0.00020297,2]
[327796268,1716489034936,-183.50869794,0.00020301,2]
[327796269,1716489034945,-832.78366286,0.00020302,2]
[327796270,1716489034954,-1804.78497841,0.00020302,2]
[327796271,1716489034965,-5855.66818691,0.00020302,2]
[327796272,1716489034976,-1240.78981057,0.00020302,2]
[327796273,1716489034987,-11238.23632014,0.00020302,2]
[327796274,1716489035106,-4801.53009967,0.00020302,2]
[327796277,1716489035118,-1361.45276237,0.00020302,2]
[327796286,1716489035171,-874.4884905,0.00020302,2]
[327796291,1716489035186,-440.2,0.00020302,2]
[327796294,1716489035198,-67119.91124898,0.00020302,2]
[327796300,1716489035219,-117950.5180894,0.00020302,2]
[327796304,1716489035231,-672.28751625,0.00020302,2]
[327796306,1716489035242,-388213.40202605,0.00020302,2]
[327796307,1716489035252,-1616.827304,0.00020302,2]
[327796393,1716489039708,-794.32983409,0.00020204,2]
[327796395,1716489039718,-2016.94227978,0.00020292,2]
[327796396,1716489039728,-3895.42788613,0.00020302,2]
[327796401,1716489040135,-1549.07089868,0.00020302,2]
[327796402,1716489040147,-2371.12989906,0.00020302,2]
[327796403,1716489040158,-1912.28889308,0.00020302,2]
[327796404,1716489040172,-3389.96530916,0.00020302,2]
[327796405,1716489040183,-922.39733341,0.00020302,2]
[327796406,1716489040195,-408.86645108,0.00020302,2]
[327796407,1716489040206,-358.29321562,0.00020302,2]
[327796408,1716489040217,-854.31862366,0.00020302,2]
[327796409,1716489040229,-308.88694708,0.00020302,2]
[327796410,1716489040240,-3751.00000083,0.00020302,2]
[327796411,1716489040252,-8592.5,0.00020302,2]
[327796412,1716489040263,-308.66866659,0.00020302,2]
[327796413,1716489040275,-714.662132,0.00020302,2]
[327796415,1716489041471,-3268.0669238,0.00020302,2]
[327796419,1716489041485,-271.4273085,0.00020302,2]
[327796420,1716489041496,-1006.005,0.00020302,2]
[327796421,1716489041512,-51938.04305603,0.00020302,2]
[327796422,1716489041522,-112568.39776681,0.00020303,2]
[327796423,1716489041531,-155.0,0.00020311,2]
[327796424,1716489041541,-318.10175994,0.00020311,2]
[327796425,1716489041549,-1000.0,0.00020312,2]
[327796426,1716489041559,-25283.06,0.00020313,2]
[327796427,1716489041568,-200.0,0.0002032,2]
[327796428,1716489041578,-324.73,0.00020327,2]
[327796429,1716489041587,-4472.55,0.0002034,2]
[327796430,1716489041596,-178.2,0.00020343,2]
[327796431,1716489041605,-925.11,0.00020371,2]
[327796432,1716489041615,-157.58635487,0.00020381,2]
[327796433,1716489041624,-2500.0,0.00020392,3]
[327796434,1716489041633,-157.58635487,0.00020465,2]
[327796435,1716489041643,-234.24959519,0.00020492,2]
[327796436,1716489041657,-280.21533997,0.00020492,2]
[327796437,1716489041666,-325.27009318,0.00020492,2]
[327796438,1716489041676,-426.09074736,0.00020492,2]
[327796439,1716489041686,-1790.57682134,0.00020494,2]
[327796440,1716489041695,-1091.01,0.00020495,2]
[327796441,1716489041704,-157.58635487,0.00020549,2]
[327796442,1716489041713,-157.58635487,0.00020633,2]
[327796443,1716489041723,-321.21,0.00020643,2]
[327796444,1716489041732,-286.95551788,0.00020668,2]
[327796445,1716489041741,-1709.09955405,0.00020668,2]
[327796446,1716489041750,-9884.77228886,0.00020668,2]
[327796447,1716489041760,-639.82332566,0.00020669,2]
[327796448,1716489041769,-518.38,0.00020671,2]
[327796449,1716489041779,-1396.18,0.00020686,2]
[327796450,1716489041788,-225.95,0.00020695,2]
[327796451,1716489041803,-157.58635487,0.00020717,2]
[327796452,1716489041813,-2000.0,0.0002074,3]
[327796453,1716489041822,-1670.43,0.00020765,2]
[327796454,1716489041832,-638.71,0.0002078,2]
[327796455,1716489041841,-157.58635487,0.00020801,2]
[327796456,1716489041851,-795.48059306,0.00020836,2]
[327796457,1716489041861,-210.42228446,0.00020836,2]
[327796458,1716489041870,-638.71,0.00020837,2]
[327796459,1716489041879,-157.58635487,0.00020885,2]
[327796460,1716489041889,-500.0,0.00020893,2]
[327796461,1716489041898,-638.71,0.00020894,2]
[327796462,1716489041908,-638.71,0.00020951,2]
[327796463,1716489041917,-157.58635487,0.00020969,2]
[327796464,1716489041930,-2754.63037029,0.00020989,2]
[327796465,1716489041939,-212.34509985,0.00020993,2]
[327796466,1716489041948,-695.73947977,0.00020993,2]
[327796467,1716489041958,-956.0368988,0.00020993,2]
[327796468,1716489041968,-168.67641696,0.00020993,2]
[327796469,1716489041978,-190.14931315,0.00020993,2]
[327796470,1716489041987,-750.0,0.00021,2]
[327796471,1716489041997,-638.71,0.00021008,2]
[327796472,1716489042006,-157.58635487,0.00021052,2]
[327796473,1716489042016,-638.71,0.00021065,2]
[327796474,1716489042025,-2056.2,0.00021072,2]
[327796475,1716489042035,-273.01392063,0.00021086,2]
[327796476,1716489042044,-457.48757191,0.00021086,2]
[327796477,1716489042053,-163.35114358,0.00021087,2]
[327796478,1716489042063,-6072.95838708,0.00021087,2]
[327796479,1716489042072,-1032.37852384,0.00021087,2]
[327796480,1716489042082,-3634.45,0.00021089,2]
[327796481,1716489042092,-638.71,0.00021122,2]
[327796482,1716489042101,-157.58635487,0.00021136,2]
[327796483,1716489042111,-638.71,0.00021179,2]
[327796484,1716489042120,-340.56256104,0.00021193,2]
[327796485,1716489042129,-157.58635487,0.0002122,2]
[327796486,1716489042138,-638.71,0.00021236,2]
[327796487,1716489042147,-152.16,0.00021282,2]
[327796488,1716489042156,-152.16,0.00021282,2]
[327796489,1716489042166,-638.71,0.00021293,2]
[327796490,1716489042177,-157.58635487,0.00021304,2]
[327796491,1716489042186,-638.71,0.0002135,2]
[327796492,1716489042195,-157.58635487,0.00021388,2]
[327796493,1716489042204,-638.71,0.00021407,2]
[327796494,1716489042213,-638.71,0.00021464,2]
[327796495,1716489042223,-157.58635487,0.00021472,2]
[327796496,1716489042231,-638.71,0.00021521,2]
[327796497,1716489042240,-157.58635487,0.00021556,2]
[327796498,1716489042250,-638.71,0.00021578,2]
[327796499,1716489042259,-2814.53475119,0.00021592,2]
[327796500,1716489042268,-434.88730563,0.00021592,2]
[327796501,1716489042277,-638.71,0.00021635,2]
[327796502,1716489042286,-157.58635487,0.0002164,2]
[327796503,1716489042295,-282.85,0.00021681,3]
[327796504,1716489042304,-848.59,0.00021681,3]
[327796505,1716489042313,-638.71,0.00021692,2]
[327796506,1716489042322,-1105.85938254,0.00021692,2]
[327796507,1716489042331,-257.07684942,0.00021692,2]
[327796508,1716489042341,-426.53759319,0.00021692,2]
[327796509,1716489042350,-3011.83944086,0.00021692,2]
[327796510,1716489042359,-16037.96591989,0.00021692,2]
[327796511,1716489042368,-1530.08068188,0.00021692,2]
[327796512,1716489042377,-2573.1760663,0.00021692,2]
[327796513,1716489042388,-237.91738848,0.00021693,2]
[327796514,1716489042401,-333.89857965,0.00021693,2]
[327796515,1716489042414,-155.42860413,0.00021693,2]
[327796516,1716489042425,-803.7740889,0.00021693,2]
[327796517,1716489042435,-773.21956934,0.00021693,2]
[327796518,1716489042445,-159.57077881,0.00021693,2]
[327796519,1716489042455,-168.98653766,0.00021693,2]
[327796520,1716489042465,-212.64301334,0.00021693,2]
[327796521,1716489042475,-499.99,0.00021693,2]
[327796522,1716489042484,-210.0,0.00021698,2]
[327796523,1716489042495,-210.0,0.00021698,2]
[327796524,1716489042505,-157.58635487,0.00021724,2]
[327796525,1716489042514,-638.71,0.00021749,2]
[327796526,1716489042524,-172.90223474,0.00021763,2]
[327796527,1716489042533,-638.71,0.00021806,2]
[327796528,1716489042542,-157.58635487,0.00021808,2]
[327796529,1716489042552,-2646.98,0.00021819,2]
[327796530,1716489042562,-2646.98,0.00021825,2]
[327796531,1716489042571,-2646.98,0.0002183,2]
[327796532,1716489042580,-2646.98,0.00021836,2]
[327796533,1716489042590,-2646.98,0.00021842,2]
[327796534,1716489042599,-2646.98,0.00021848,2]
[327796535,1716489042609,-2646.98,0.00021853,2]
[327796536,1716489042618,-2646.98,0.00021859,2]
[327796537,1716489042628,-638.71,0.00021863,2]
[327796538,1716489042637,-2646.98,0.00021865,2]
[327796539,1716489042646,-2646.98,0.00021871,2]
[327796540,1716489042657,-2646.98,0.00021876,2]
[327796541,1716489042666,-2646.98,0.00021882,2]
[327796542,1716489042678,-2646.98,0.00021888,2]
[327796543,1716489042687,-2646.98,0.00021894,2]
[327796544,1716489042697,-152.16,0.00021895,2]
[327796545,1716489042706,-2646.98,0.00021899,2]
[327796546,1716489042716,-1411.0,0.000219,3]
[327796547,1716489042726,-2646.98,0.00021905,2]
[327796548,1716489042735,-2767.62,0.00021908,2]
[327796549,1716489042745,-2646.98,0.00021911,2]
[327796550,1716489042754,-2646.98,0.00021917,2]
[327796551,1716489042763,-500.0,0.00021917,2]
[327796552,1716489042773,-161.02908088,0.00021917,2]
[327796553,1716489042782,-500.0,0.00021917,2]
[327796554,1716489042791,-500.0,0.00021917,2]
[327796555,1716489042800,-500.0,0.00021917,2]
[327796556,1716489042810,-651.65,0.00021917,2]
[327796557,1716489042819,-665.18,0.00021917,2]
[327796558,1716489042828,-500.0,0.00021917,2]
[327796559,1716489042838,-500.0,0.00021917,2]
[327796560,1716489042847,-1100.54,0.00021917,2]
[327796561,1716489042856,-545.43,0.00021917,2]
[327796562,1716489042866,-500.0,0.00021917,2]
[327796563,1716489042875,-500.0,0.00021917,2]
[327796564,1716489042885,-500.0,0.00021917,2]
[327796565,1716489042894,-500.0,0.00021917,2]
[327796566,1716489042904,-632.96,0.00021917,2]
[327796567,1716489042913,-1664.35,0.00021917,2]
[327796568,1716489042923,-500.0,0.00021917,2]
[327796569,1716489042932,-500.0,0.00021917,2]
[327796570,1716489042941,-500.0,0.00021917,2]
[327796571,1716489042950,-569.523662,0.00021917,2]
[327796572,1716489042960,-500.0,0.00021917,2]
[327796573,1716489042969,-500.0,0.00021917,2]